Cogmind - Beta 11.1 @@@ ROGUE MODE // 2022.10.30 @ 23:26:26 Player: Crud Result: Destroyed by as-48504 with Assembled Heavy Rifle Performance ------------- Evolutions (0) 0 Regions Visited (2) 400 Robots Destroyed (36) 180 Value Destroyed (426) 426 Prototype IDs (0) 0 Alien Tech Used (0) 0 Bonus (0) 0 TOTAL SCORE: 1006 Bonus ------- None Cogmind --------- Core Integrity 0/250 Matter 231/300 Energy 231/250 System Corruption 5% Temperature Cool (8) Movement Treading (320) Ox2 Location -10/Mines Parts ------- > --- POWER (1) -------- Ion Engine > --- PROPULSION (2) --- Light Treads > --- UTILITY (2) ------ High-capacity Storage Unit Seismic Detector > --- WEAPON (2) ------- Improved Grenade Launcher > --- INVENTORY (20) --- Ion Engine Heat Sink Medium Storage Unit Small Matter Pod (50) Large Matter Pod (150) Visual Processing Unit Improved Sensor Array Improved Terrain Scanner Terrain Scan Processor Hacking Suite Hacking Suite Grenade Launcher Mini Grenade Launcher Mini Grenade Launcher Axe Peak State ------------ > --- POWER ------------ Ion Engine > --- PROPULSION ------- Light Treads Light Treads > --- UTILITY ---------- High-capacity Storage Unit Seismic Detector > --- WEAPON ----------- Field Laser Enhanced Flamer > --- INVENTORY -------- Ion Engine Light Treads Heat Sink Medium Storage Unit Small Matter Pod Large Matter Pod Visual Processing Unit Improved Sensor Array Improved Terrain Scanner Terrain Scan Processor Hacking Suite Hacking Suite Medium Laser Assault Rifle Grenade Launcher Mini Grenade Launcher Mini Grenade Launcher Improved Grenade Launcher Mining Laser Axe [Rating: 14] Favorites ----------- Power Ion Engine Engine Ion Engine Propulsion Light Treads Treads Light Treads Utility Seismic Detector Device Seismic Detector Storage High-capacity Storage Unit Weapon Assault Rifle Energy Gun Medium Laser Ballistic Gun Assault Rifle Launcher Improved Grenade Launcher Special Weapon Enhanced Flamer Build | -11 -10 -10 ------- Run | Scr Mat Min Slots Evolved . | . . . Power . | . . . Propulsion . | . . . Utility . | . . . Weapon . | . . . Parts Attached 21 | 7 4 10 Power 1 | 1 . . Engine 1 | 1 . . Core . | . . . Reactor . | . . . Propulsion 4 | 2 1 1 Treads 4 | 2 1 1 Leg . | . . . Wheel . | . . . Hover . | . . . Flight . | . . . Utility 5 | 2 3 . Device 2 | 1 1 . Storage 3 | 1 2 . Processor . | . . . Hackware . | . . . Protection . | . . . Artifact . | . . . Weapon 11 | 2 . 9 Energy Gun 4 | 1 . 3 Energy Cannon . | . . . Ballistic Gun 2 | 1 . 1 Ballistic Cannon . | . . . Launcher 2 | . . 2 Special Weapon 3 | . . 3 Impact Weapon . | . . . Slashing Weapon . | . . . Piercing Weapon . | . . . Special Melee Weapon . | . . . Unidentified Prototypes . | . . . Parts Lost 7 | . . 7 Power . | . . . Propulsion 2 | . . 2 Utility . | . . . Weapon 5 | . . 5 Highest Loss Streak 6 | . . 6 To Critical Strikes . | . . . Average Slot Usage (%) 99 | . 100 99 Engine 14 | . 14 14 Treads 27 | . 28 27 Device 14 | . 14 14 Storage 14 | . 14 14 Energy Gun 14 | . 14 14 Ballistic Gun 12 | . 14 8 Special Weapon 1 | . . 4 Naked Turns . | . . . Heaviest Build 51 | 15 50 51 Greatest Support 40 | 40 40 40 Greatest Overweight (x) 1 | . 1 1 Average Overweight (x) . | . . 1 Largest Inventory Capacity 20 | 8 20 20 Average Capacity 13 | 7 12 20 Most Carried 20 | 8 13 20 Average Carried 11 | 7 9 16 Final Capacity 20 | 8 20 20 Final Carried 15 | 8 13 15 Class Distribution -------------------- 100% | Mutant Dominant Class ---------------- Mutant | -10/Materials Mutant | -10/Mines Resources | -11 -10 -10 ----------- Run | Scr Mat Min Matter Collected 771 | 338 334 99 Remotely . | . . . Salvage Created 907 | 188 451 268 Parts 72 | 13 37 22 Haulers Intercepted 1 | . 1 . Recyclers Shooed 3 | . 2 1 Parts Field Recycled . | . . . Retrieved Matter . | . . . Parts Self-Destructed . | . . . Prevented . | . . . Kills | -11 -10 -10 ------- Run | Scr Mat Min Combat Hostiles Destroyed 22 | . 11 11 Guns 20 | . 11 9 AOE 2 | . . 2 Classes Destroyed 10 | 3 5 2 Worker 7 | 3 2 2 Builder 1 | . 1 . Tunneler 5 | 3 1 1 Hauler 1 | . 1 . Recycler 3 | 1 1 1 Watcher 1 | . 1 . Swarmer 12 | . 6 6 Grunt 5 | . 5 . Demolisher 1 | . . 1 Assembled 4 | . . 4 Best Kill Streak 4 | 2 3 4 Combat Bots Only 4 | . 3 4 Max Kills in Single Turn 2 | 1 2 2 Gunslinging 1 | . 1 . Exploded 2 | . . 2 Melee . | . . . Uniques/NPCs Destroyed . | . . . Combat | -11 -10 -10 -------- Run | Scr Mat Min Damage Taken 1165 | . 245 920 Core 254 | . 29 225 Absorbed by Shields . | . . . Core Remaining (%) 100 | 100 . . Volleys Fired 81 | 12 42 27 Largest 2 | 2 2 2 Hottest 143 | 70 70 143 Shots Fired 157 | 24 83 50 Gun 148 | 24 83 41 Cannon . | . . . Launcher 4 | . . 4 Special 5 | . . 5 Kinetic 70 | 12 42 16 Thermal 83 | 12 41 30 Explosive 4 | . . 4 Electromagnetic . | . . . Robot Hit Streak 12 | 8 12 7 Robot Miss Streak 4 | 3 4 3 Penetration Max . | . . . Secondary Targets 2 | . 1 1 Max Gunslinging Chain 1 | . 1 1 Shots Hit Robots 98 | 16 55 27 Core Hits 55 | 7 25 23 Critical Kills . | . . . Critical Parts Destroyed . | . . . Critical Strikes 6 | . 4 2 Burn 6 | . 4 2 Melee Attacks . | . . . Impact . | . . . Slashing . | . . . Piercing . | . . . Sneak Attacks . | . . . Combat Hostiles . | . . . Follow-up Attacks . | . . . Damage Inflicted 1418 | 195 723 500 Guns 1304 | 195 723 386 Cannons . | . . . Explosions 103 | . . 103 Melee . | . . . Ramming . | . . . Kinetic 586 | 83 359 144 Thermal 729 | 112 364 253 Explosive 103 | . . 103 Electromagnetic . | . . . Impact . | . . . Slashing . | . . . Piercing . | . . . Highest Corruption 5 | . . 5 Average Corruption 5 | . . 5 Corruption Purged . | . . . Corruption Blocked . | . . . Overload Shots . | . . . Overflow Damage . | . . . Projectiles . | . . . Explosions . | . . . Melee . | . . . Knockbacks . | . . . Impact . | . . . Kinetic . | . . . Secondary . | . . . Self-Inflicted Damage 25 | . . 25 Shots 1 | . . 1 Rammed . | . . . Targets Rammed . | . . . Kicked . | . . . Crushed . | . . . Highest Temperature 402 | 27 81 402 Average Temperature 54 | 10 20 114 Received Heat Transfer 80 | . 60 20 Siege Activations . | . . . Robots Corrupted . | . . . Combat Hostiles . | . . . Parts Fried . | . . . Impact Corruptions . | . . . Robots Melted . | . . . Combat Hostiles . | . . . Parts Melted 4 | 1 3 . Heat Transferred 2485 | 333 1332 820 Parts Sabotaged . | . . . Parts Stolen . | . . . Parts Stripped . | . . . Power Chain Reactions . | . . . Missiles Intercepted . | . . . Alert | -11 -10 -10 ------- Run | Scr Mat Min Peak Influence 163 | 35 150 163 Initial 58 | . 22 58 Average 63 | 20 59 92 Maximum Alert Level . | . . . Low Security (%) 100 | 100 100 100 Level 1 . | . . . Level 2 . | . . . Level 3 . | . . . Level 4 . | . . . Level 5 . | . . . High Security . | . . . Max Security . | . . . Squads Dispatched 4 | . 3 1 Investigation 1 | . . 1 Extermination . | . . . Reinforcement 3 | . 3 . Assault . | . . . Garrison . | . . . Intercept . | . . . Searches Triggered . | . . . Construction Impeded . | . . . Haulers Reinforced . | . . . Active Scanning Responses . | . . . Cargo Convoy Interrupts . | . . . Stealth | -11 -10 -10 --------- Run | Scr Mat Min Distress Signals . | . . . Communications Jammed . | . . . Distress Signals . | . . . Times Spotted 31 | . 15 16 Peak Tracking Total 7 | . 3 7 Tactical Retreats 2 | . . 2 Traps | -11 -10 -10 ------- Run | Scr Mat Min Traps Triggered . | . . . Indirectly . | . . . Trap Hack Attempts . | . . . Triggered . | . . . Disarmed . | . . . Reprogrammed . | . . . Reused . | . . . Traps Extracted . | . . . Installed . | . . . Triggered . | . . . Machines | -11 -10 -10 ---------- Run | Scr Mat Min Machines Disabled . | . . . Max in Single Turn . | . . . Machines Sabotaged . | . . . Garrisons Compromised . | . . . Overloaded Fab Kills . | . . . Hacking | -11 -10 -10 --------- Run | Scr Mat Min Machines Accessed 6 | . 5 1 Terminals 4 | . 4 . Fabricators . | . . . Repair Stations . | . . . Recycling Units 1 | . 1 . Scanalyzers . | . . . Garrison Access . | . . . Total Hacks 15 | . 14 1 Successful 10 | . 9 1 Failed 4 | . 4 . Catastrophic 1 | . 1 . Database Lockouts 1 | . 1 . Manual 4 | . 4 . Terminals 10 | . 10 . Fabricators . | . . . Repair Stations . | . . . Recycling Units 4 | . 4 . Scanalyzers . | . . . Garrison Access . | . . . Terminal Hacks 6 | . 5 1 Robot Analysis 3 | . 3 . Open Door 1 | . . 1 Branch Access Points 1 | . 1 . Terminal Index 1 | . 1 . Fabricator Hacks . | . . . Repair Station Hacks . | . . . Recycling Unit Hacks 4 | . 4 . Process 1 | . 1 . Retrieve Matter 2 | . 2 . Retrieve Components 1 | . 1 . Scanalyzer . | . . . Garrison Access Hacks . | . . . Unauthorized Hacks . | . . . Terminals . | . . . Fabricators . | . . . Repair Stations . | . . . Recycling Units . | . . . Scanalyzers . | . . . Garrison Access . | . . . Data Cores Recovered . | . . . Used . | . . . Hacking Detections 4 | . 4 . Full Trace Events . | . . . Feedback Events . | . . . Feedback Blocked . | . . . Robot Schematics Acquired . | . . . Robots Built . | . . . Authchips . | . . . Time . | . . . Total Robot Build Rating . | . . . Part Schematics Acquired . | . . . Parts Built . | . . . Authchips . | . . . Time . | . . . Total Part Build Rating . | . . . Parts Repaired . | . . . Time . | . . . Parts Recycled . | . . . Recycled Matter 196 | . 196 . Retrieved Matter 196 | . 196 . Retrieved Components 1 | . 1 . Parts Scanalyzed . | . . . Part Schematics Acquired . | . . . Parts Damaged . | . . . Bothacking | -11 -10 -10 ------------ Run | Scr Mat Min Used RIF Installer . | . . . Robots Hacked . | . . . Non-combat . | . . . Combat . | . . . Robot Hacks Applied . | . . . Relay Couplers Released . | . . . Fabnet Peak Effective % . | . . . Robots Rewired . | . . . Allies Hacked . | . . . Hacks Repelled . | . . . Allies | -11 -10 -10 -------- Run | Scr Mat Min Total Allies . | . . . Largest Group . | . . . Highest-Rated Group . | . . . Highest-Rated Ally . | . . . Total Orders . | . . . Ally Attacks . | . . . Total Damage . | . . . Kills . | . . . Allies Corrupted . | . . . Allies Melted . | . . . Intel | -11 -10 -10 ------- Run | Scr Mat Min Robot Analysis Total 3 | . 3 . Derelict Logs Recovered 1 | . . 1 Drone Launches . | . . . Drone Recoveries . | . . . Exploration | -11 -10 -10 ------------- Run | Scr Mat Min Turns Passed 2063 | 323 1133 607 Spaces Moved 844 | 121 516 207 Core 11 | 11 . . Treads 833 | 110 516 207 Legs . | . . . Wheels . | . . . Hover . | . . . Flight . | . . . Fastest Speed 50 | 50 160 240 Average Speed 189 | 150 179 240 Slowest Speed 240 | 160 240 240 Overloaded Moves . | . . . Propulsion Burnouts . | . . . Robots Hopped . | . . . Cave-ins Triggered . | . . . Exploration Rate (%) 40 | 7 74 41 Regions Visited 2 Branch Regions 1 Pre-discovered Areas 2 | . . 2 Known Exits Taken 1 | . 1 . Unknown Exits Taken 1 | 1 . . Scrap Searched . | . . . Spaces Dug . | . . . Terrain Destroyed 34 | . . 34 Melee . | . . . Projectile . | . . . AOE 34 | . . 34 Terrain Rammed . | . . . Walls Destroyed . | . . . Machines Disabled . | . . . Actions | -11 -10 -10 --------- Run | Scr Mat Min Total 1146 | 237 648 261 Wait 160 | 86 63 11 Move 842 | 120 515 207 Hop . | . . . Pick Up 31 | 12 13 6 Fast Attach 3 | 3 . . Attach 10 | 4 1 5 Detach 1 | . 1 . Swap 8 | . 3 5 Drop 10 | . 10 . Fire 81 | 12 42 27 Melee . | . . . Ram . | . . . Kick . | . . . Crush . | . . . Escape Stasis . | . . . Rewire . | . . . Trap . | . . . Miscellaneous . | . . . Route ------- -11/Scrapyard -10/Materials (discovered 3 exits: [*Mat] / *Min x2) -10/Mines (discovered 1 exit: [*Mat]) History --------- Turn | Location | Event 9 | -11/Scrapyard | Discovered new exit (range 15) 324 | -11/Scrapyard | Entered Materials 325 | -10/Materials | Build established: Mutant 451 | -10/Materials | Central database locked down 563 | -10/Materials | Discovered new exit (range 16) 909 | -10/Materials | Discovered new exit (range 8) 1382 | -10/Materials | Identified exit to Mines 1457 | -10/Materials | Entered Mines 1692 | -10/Mines | Met a Derelict shopkeep closing up shop 1762 | -10/Mines | A weapon hastily lodged in a ceiling crevice suddenly fell to the ground 1827 | -10/Mines | Found a hidden stash of uninstalled traps 1868 | -10/Mines | Discovered new exit (range 6) 1879 | -10/Mines | Learned location of Storage (-8) 1960 | -10/Mines | Assembled infested the area 1988 | -10/Mines | Core integrity fell below 50% 2059 | -10/Mines | Core integrity fell below 20% 2064 | -10/Mines | Destroyed by as-48504 with Assembled Heavy Rifle Last Messages --------------- 02016_ U-05 Engineer builds a Wall. 02017_ The unstable cave ceiling collapses. 02021_ U-05 Engineer builds a Wall. 02034_ as-64104 suffers critical hit (Burn). 02034_ as-64104 destroyed. 02034_ Switching to secondary target: as-14832. 02037_ K-01 Serf destroyed. 02040_ as-14832 destroyed. 02042_ K-01 Serf collects debris. 02043_ as-05506 sneak attacks. 02050_ Acquired 43 matter. 02051_ Field Laser destroyed. 02054_ Assault Rifle destroyed. 02056_ Enh. Flamer destroyed. 02057_ Lgt. Treads destroyed. 02057_ Mining Laser destroyed. 02057_ System corrupted by crushing effect (+5). 02062_ Med. Laser destroyed. 02063_ as-39898 destroyed. 02063_ as-51053 destroyed. Map ----- +----------------------------------------------------+ | ????????????????????????????????????# #????? | | ????????????????????????????????????# ###### | | ????????????????????????????######### ## | | ??####??????????????????????# ## """ | | ### ##?######??????????##??# ## """ | | # ### ##???????## ##?# ######### ## """ | | #??###?## #?#*#???????## ## | | #?## ## #?#%#????????##[*### """ | | # ### < #??# #??#[#?????????##%#?# """ | | ####?## #### # ##?# #??????????#=#?# """ | | ??????## # ??# #??????##### #?# | | ???????## ## # &#??# #??????# #?# """ | | ????????## ### # & #### #???#### ### """ | | ?????????####?# ## # #??##""## ## """ | | ??????????????# % #####??#" # ## | | ??????????????###### #??????#" ##### | | ???????????????# # #??????#" ##?? | | ????????????????# # ####???#" #X ##? | | ????????????????## # ###?##""## #? | | ????????????????# #??####### #? | | ????????????????## # #????????## ##? | | ?????????????????## # # #?????????###[ #### | | ??????????????????####### # # #???????????#===%*| | | ????????????????????##??#####r ##??????????# %#### | | ?????????? % # ### ##?????????#% #??? | | ?????????? % =@a #????????#*= #?? | | ?????????? a % [=a #??????# ? | | ?????????????# ! ! ## #?????# | | ?????????????# #### == ##?????# | | ?????????????### ##???#*%##?????? | | ???????????????### ## #??????%%#?????? | | ?????????????????# ??# ??????? #????? #### | | ????????????????# ???# ??????? %#????? #????# | | ???????????????# ????# ??????? ???? #??????# | | ??????????????# ????? ????????### ??# ???????? | | ??????????????#?????? ??????????? ??### ???????? | | ????????????????????###????????????#???# ???????? | | ???????????????????????????????????????# ????????? | | ????????????????????????????????????????#????????? | | ?????????????????????????????????????????????????? | | ?????????????????????????????????????????????????? | | ?????????????????????????????????????????????????? | | ?????????????????????????????????????????????????? | | ?????????????????????????????????????????????????? | | ?????????????????????????????????????????????????? | | ?????????????????????????????????????????????????? | | ?????????????????????????????????????????????????? | | ?????????????????????????????????????????????????? | | ?????????????????????????????????????????????????? | | ?????????????????????????????????????????????????? | +----------------------------------------------------+ Best States ------------- Heat Dissipation 25 Energy Generation 10 Energy Capacity 250 Matter Stores 300 Matter Capacity 300 Sight Range 16 Terrain Scan Range 16 Terrain Scan Density 10 Evasion (%) 50 Recoil Reduction 2 Item Schematics ----------------- None Robot Schematics ------------------ None Fabricated ------------ Nothing Alien Tech Used ----------------- None Achievements -------------- Armchair Analyst Challenges ------------ None Game ------ Seed SalvageAngularClaymores Manual? 0 Play Time 00:23:54 Cumulative 22.4 hours Start 2022.10.30 @ 23:02:35 End 2022.10.30 @ 23:26:26 Sessions 1 Manual Loads 0 Difficulty Rogue Special Mode None Game No. 25 Rogue 25 Adventurer 0 Explorer 0 Win Type - Total 0 Types 0/0/0/0/0/0/0/0/0 Lore% 23 Gallery% 30 Achievement% 21 Wizard Run 0 Options --------- ASCII 0 Keyboard 0 Movement Mouse Keybinds 0 Fullscreen 1 Font 36/Smallcaps Map View 76x50 Tactical HUD 1 Map Filters NONE Filters NONE Steam 1 RUN: 0ebbd6e6-cdc9-453e-a1a7-3795ff267acf